bitfinex/quotes_ETHUSD_20260302
["timestamp","ask_amount","ask_price","bid_price","bid_amount"]
[1772473065472,3.78069954,2051.0,2049.8,2.17654689]
[1772473065636,4.04184046,2050.9,2049.8,0.95691842]
[1772473065839,4.04184046,2050.9,2049.1,5.54438247]
[1772473065840,1.10539109,2050.7,2049.1,1.88438641]
[1772473066043,2.27054799,2050.4,2049.2,0.95691842]
[1772473066283,1.21939322,2050.2,2049.2,2.17690258]
[1772473066447,0.9559061,2050.0,2049.1,0.66436249]
[1772473066654,0.9559061,2049.7,2049.1,0.66436249]
[1772473066962,2.83623622,2049.6,2049.1,0.56436249]
[1772473067274,0.01504702,2049.6,2048.4,4.88185096]
[1772473067982,3.82303974,2049.5,2048.1,4.88250508]
[1772473068162,1.21992875,2049.3,2048.1,4.88250508]
[1772473068484,1.21704702,2049.2,2048.1,4.88250508]
[1772473068939,1.21704702,2049.2,2048.1,1.22064352]
[1772473069242,0.01504702,2049.2,2048.2,1.07254189]
[1772473070345,1.22004782,2049.1,2048.2,1.07254189]
[1772473070546,0.14948499,2048.7,2047.2,5.95721049]
[1772473070774,1.21804702,2048.6,2047.3,1.07254189]
[1772473070969,1.21704702,2048.6,2047.3,1.07254189]
[1772473071453,1.01698951,2048.5,2047.1,0.1650562]
[1772473071773,1.01698951,2048.1,2047.1,0.1650562]
[1772473072073,1.21704702,2048.0,2047.1,0.1650562]
[1772473072276,1.22076273,2047.9,2047.1,0.1650562]
[1772473072495,1.02760268,2047.8,2046.5,5.95878709]
[1772473072781,1.02760268,2047.8,2046.6,1.22148079]
[1772473072968,1.21704702,2047.8,2046.7,1.07254189]
[1772473073372,0.99698445,2047.6,2045.7,1.07254189]
[1772473073554,0.01504702,2047.5,2045.7,1.07254189]
[1772473073758,0.01504702,2047.5,2045.9,1.07254189]
[1772473074080,0.01504702,2047.5,2045.8,0.065536]
[1772473074081,0.01504702,2047.5,2046.3,1.07254189]
[1772473074375,0.01504702,2047.5,2046.4,2.29419339]
[1772473074376,1.22106085,2047.4,2046.4,2.29419339]
[1772473074674,1.21804702,2047.3,2046.5,1.07254189]
[1772473074873,1.21804702,2047.3,2046.4,1.2216515]
[1772473076243,0.01504702,2047.3,2046.3,5.95918392]
[1772473076562,1.23617657,2047.3,2046.1,1.22179094]
[1772473076877,1.23617657,2047.3,2046.0,1.07254189]
[1772473076878,0.83472552,2047.1,2045.3,1.07254189]
[1772473077081,1.21904702,2047.0,2045.7,1.07254189]
[1772473077889,0.14948499,2046.9,2045.7,1.07254189]
[1772473078079,0.01504702,2046.8,2045.7,1.07254189]
[1772473078484,2.42547847,2046.7,2045.8,1.22201583]
[1772473078793,1.21904702,2046.6,2045.8,1.22201583]
[1772473078958,0.01504702,2046.6,2045.8,1.22201583]
[1772473079157,0.01504702,2046.6,2045.8,2.29455772]
[1772473079598,1.22144558,2046.8,2045.8,1.22201583]
[1772473079760,0.82160929,2049.7,2046.1,1.07254189]
[1772473079761,0.82160929,2048.4,2046.1,1.07254189]
[1772473080093,1.22144558,2048.3,2046.3,1.07254189]
[1772473080252,2.04305487,2048.2,2046.4,1.07254189]
[1772473080453,1.22064352,2048.1,2046.6,1.07254189]
[1772473080764,0.81726165,2047.9,2046.6,1.07254189]
[1772473081258,2.42944558,2047.8,2046.6,1.07254189]
[1772473081678,0.99892811,2047.5,2046.2,2.29427301]
[1772473081878,0.99892811,2047.5,2046.2,1.22173112]
[1772473082086,0.99892811,2047.3,2046.2,1.22173112]
[1772473082289,1.209,2047.2,2046.2,1.22173112]
[1772473082466,1.2212398,2047.1,2046.0,4.88739786]
[1772473082658,2.44268538,2047.1,2046.0,4.88739786]
[1772473082859,1.22144558,2047.0,2046.1,1.07254189]
[1772473084859,1.22144558,2047.0,2046.2,1.22177695]
[1772473085088,2.4427517,2047.0,2046.2,2.29431884]
[1772473085395,2.44274564,2047.0,2046.2,1.22177695]
[1772473085601,2.44274564,2047.0,2045.9,4.88881158]
[1772473085602,2.44274564,2047.0,2045.9,1.22292852]
[1772473086793,2.44274607,2047.0,2046.0,1.07254189]
[1772473086960,2.44274607,2047.0,2046.0,2.29440589]
[1772473087310,0.8274882,2046.9,2045.9,0.001]
[1772473087525,0.8274882,2046.9,2045.3,1.04]
[1772473087526,0.038565,2046.0,2044.2,4.89168513]
[1772473087680,0.038565,2046.0,2044.3,1.07254189]
[1772473087681,1.211,2045.9,2044.3,1.07254189]
[1772473087865,0.788,2045.8,2044.3,1.07254189]
[1772473088059,0.255174,2046.0,2044.3,1.07254189]
[1772473088376,1.21944558,2045.8,2044.5,1.07254189]
[1772473088575,0.14948499,2045.7,2044.5,1.07254189]
[1772473088899,0.14948499,2045.5,2044.2,1.22297231]
[1772473089125,0.14948499,2045.5,2043.7,4.89302965]
[1772473089126,0.8188805,2044.5,2043.3,1.22351098]
[1772473089256,1.90990032,2044.6,2043.3,1.22351098]
[1772473089257,0.788,2044.6,2043.3,1.22351098]
[1772473089807,0.788,2044.6,2043.2,4.89404394]
[1772473089808,1.90990032,2043.9,2041.8,1.07254189]
[1772473090019,1.90990032,2043.9,2041.2,1.22471531]
[1772473090020,0.788,2044.6,2041.2,1.22471531]
[1772473090021,0.81455032,2043.6,2041.7,1.07254189]
[1772473090177,0.81455032,2044.6,2041.7,1.07254189]
[1772473090374,0.81455032,2044.6,2041.9,1.07254189]
[1772473090605,0.81455032,2044.6,2042.6,1.13807789]
[1772473090811,2.57871164,2044.7,2042.8,1.07254189]
[1772473091116,0.14948499,2044.6,2043.0,1.07254189]
[1772473091273,0.065536,2044.5,2043.0,1.07254189]
[1772473091473,0.94785561,2044.3,2042.9,1.22375055]
[1772473091712,0.94785561,2044.3,2042.5,7.45151247]
[1772473091713,1.03218745,2044.2,2042.5,1.2239902]
[1772473092021,1.03218745,2044.2,2042.6,1.07254189]
[1772473092510,0.88270246,2044.2,2042.6,1.07254189]
[1772473092688,1.212,2044.4,2042.6,1.07254189]
[1772473092889,0.14948499,2044.3,2042.6,1.07254189]
[1772473093090,0.14948499,2044.5,2042.9,1.07254189]
[1772473093311,3.80140916,2044.7,2042.9,1.07254189]
[1772473093635,2.43659559,2044.9,2042.9,1.07254189]
[1772473093838,2.43659559,2044.9,2043.1,1.07254189]
[1772473094338,0.14948499,2044.8,2043.1,1.07254189]
[1772473094488,1.0887603,2044.8,2043.1,1.07254189]
[1772473094907,2.43659559,2044.9,2043.1,1.07254189]
[1772473094908,1.22259559,2044.9,2043.1,1.07254189]
[1772473095218,1.22259559,2044.9,2043.3,1.07254189]
[1772473095615,0.14948499,2044.8,2043.3,1.07254189]
[1772473095817,1.01431124,2044.8,2043.3,1.07254189]
[1772473096005,0.86482625,2044.6,2043.1,1.22359792]
[1772473096186,0.14948499,2044.5,2043.1,1.22359792]
[1772473096383,0.86482625,2044.6,2043.1,1.22359792]
[1772473096384,0.86038839,2044.6,2043.1,1.22359792]
[1772473096595,0.14948499,2044.3,2042.9,1.22373004]
[1772473096892,0.21502099,2044.5,2043.0,1.10842343]
[1772473097092,1.0098729,2044.3,2042.9,1.22373004]
[1772473097328,1.0098729,2044.3,2042.7,1.2248545]
[1772473097498,2.94701395,2044.2,2042.7,1.2248545]
[1772473097812,1.00544698,2044.2,2042.7,1.2248545]
[1772473098019,1.00544698,2044.2,2042.7,2.26860121]
[1772473098226,0.14948499,2043.9,2042.7,0.001]
[1772473098391,0.14948499,2043.9,2042.7,1.22486317]
[1772473099209,1.22321166,2043.8,2042.7,0.001]
[1772473099841,1.22321166,2043.8,2042.7,1.04474671]
[1772473099842,1.22021166,2043.8,2042.7,1.04474671]
[1772473100196,1.22021166,2043.8,2042.7,0.001]
[1772473100736,0.84275967,2043.7,2042.4,1.22916361]
[1772473100917,0.84175967,2042.3,2039.7,1.04374671]
[1772473101123,0.52612811,2042.2,2040.9,1.04474671]
[1772473101428,0.2545,2042.4,2041.1,1.04374671]
[1772473101589,1.47855537,2042.4,2041.1,1.04374671]
[1772473101793,1.81147195,2042.3,2041.2,0.001]
[1772473102040,1.47855537,2042.4,2041.3,0.001]
[1772473102202,0.98695694,2042.3,2040.9,0.001]
[1772473102408,0.98695694,2042.3,2040.8,1.34389687]
[1772473102409,0.14948499,2042.0,2040.8,0.1189056]
[1772473102742,0.14948499,2041.8,2040.8,0.1199056]
[1772473103112,1.2244698,2041.7,2040.8,0.1199056]
[1772473103609,1.2244698,2041.7,2040.8,1.34491405]
[1772473103821,1.2244698,2041.7,2040.8,0.1199056]
[1772473105036,1.2244698,2041.7,2040.8,1.34489645]
[1772473105332,4.89645053,2042.3,2040.9,1.04374671]
[1772473105530,4.89645053,2042.3,2040.9,2.26869579]
[1772473105709,4.89645053,2042.3,2041.0,1.04474671]
[1772473107741,6.12145053,2042.3,2041.0,1.04474671]
[1772473107929,0.14948499,2042.2,2041.0,0.001]
[1772473108129,5.85981887,2042.3,2041.0,0.001]
[1772473108335,1.225,2042.1,2041.0,0.001]
[1772473109250,1.22428991,2042.0,2041.0,0.001]
[1772473109452,1.22428991,2042.0,2041.2,0.001]
[1772473110546,1.224,2041.9,2041.2,0.001]
[1772473111457,1.224,2042.0,2041.2,0.001]
[1772473111638,4.89715964,2042.2,2041.2,1.04474671]
[1772473112043,4.89715964,2042.2,2041.0,0.001]
[1772473112571,1.05301995,2042.1,2041.0,0.001]
[1772473112727,4.89715964,2042.2,2041.0,0.001]
[1772473113672,7.1727,2042.5,2041.0,0.001]
[1772473113673,4.89502965,2042.9,2041.0,1.04474671]
[1772473115162,4.89502965,2042.9,2041.2,1.04374671]
[1772473115364,5.9480496,2042.9,2041.3,1.049]
[1772473115670,5.9480496,2042.9,2041.4,1.22464975]
[1772473115881,3.85158483,2042.8,2041.4,1.22464975]
[1772473116169,1.05301995,2042.7,2041.4,1.22464975]
[1772473116375,2.80492702,2042.6,2041.4,1.22464975]
[1772473116578,2.80492702,2042.6,2041.0,4.90007909]
[1772473116579,3.85794697,2042.6,2041.0,0.001]
[1772473116728,3.85794697,2042.5,2041.1,2.26857645]
[1772473116932,1.224,2042.6,2041.2,1.04374671]
[1772473117254,2.80626003,2042.5,2041.2,1.04374671]
[1772473117649,2.80626003,2042.5,2041.3,2.26845645]
[1772473117650,4.03031016,2042.4,2041.3,2.26845645]
[1772473117965,1.22405013,2042.4,2041.3,2.26845645]
[1772473118131,2.81825339,2042.3,2041.3,2.26845645]
[1772473119934,1.22417001,2042.2,2041.3,2.26845645]
[1772473120253,1.2240978,2042.4,2041.4,1.04374671]
[1772473120445,6.11850049,2042.7,2041.4,1.04374671]
[1772473120446,1.22390541,2042.7,2041.4,1.04374671]
[1772473121979,4.89477716,2043.0,2041.6,1.04374671]
[1772473122136,1.22369065,2043.0,2041.8,1.04374671]
[1772473122540,2.22692739,2043.2,2041.8,1.04374671]
[1772473122735,1.05301995,2042.9,2041.5,1.22458976]
[1772473122971,3.27994734,2042.9,2041.5,2.26833647]
[1772473123136,2.22692739,2042.9,2041.6,1.04374671]
[1772473123865,3.27994734,2043.0,2041.6,1.04374671]
[1772473124072,4.62887095,2043.2,2041.6,1.04374671]
[1772473124073,0.002,2042.8,2041.8,1.04374671]
[1772473124676,0.002,2043.0,2041.8,1.04374671]
[1772473125047,0.002,2043.0,2042.2,1.04374671]
[1772473125251,0.002,2043.0,2042.4,1.04374671]
[1772473126370,0.002,2043.0,2042.5,1.2239902]
[1772473126873,0.002,2043.3,2042.6,1.04374671]
[1772473127585,2.22692739,2044.0,2042.5,1.2239902]
[1772473127586,4.62807883,2044.5,2042.8,1.08366176]
[1772473127738,1.22282514,2044.5,2043.0,1.08366176]
[1772473128149,1.22276801,2044.6,2043.2,1.08366176]
[1772473128346,1.22276801,2044.6,2043.2,2.13266176]
[1772473128347,1.09860293,2044.5,2043.2,2.13266176]
[1772473128758,1.09860293,2044.4,2043.2,1.049]
[1772473129091,4.50385662,2044.4,2043.2,1.049]
[1772473129392,1.09860293,2044.4,2043.2,1.049]
[1772473129678,1.09860293,2044.4,2043.0,1.22364321]
[1772473130179,1.22291248,2044.3,2043.0,2.30730497]
[1772473131170,1.22291248,2044.3,2043.1,1.08366176]
[1772473131856,4.89161124,2044.4,2043.1,1.08366176]
[1772473131857,1.22286316,2044.4,2043.1,1.08366176]
[1772473132153,1.22267325,2044.7,2043.3,1.08366176]
[1772473132481,1.22267325,2044.7,2043.2,1.22357086]
[1772473132482,1.22249388,2045.1,2043.5,1.08366176]
[1772473132784,2.83192064,2045.0,2043.5,1.08366176]
[1772473133078,1.09860293,2044.9,2043.6,1.048]
[1772473133280,2.83192064,2044.8,2043.6,1.048]
[1772473133511,1.09860293,2044.7,2043.6,1.048]
[1772473133806,1.09860293,2044.5,2043.2,1.22357086]
[1772473134022,1.09860293,2044.3,2043.2,1.22357086]
[1772473134312,1.22303214,2044.1,2043.0,5.9416804]
[1772473134478,2.32163507,2044.1,2043.1,1.22363075]
[1772473135088,1.09860293,2043.9,2043.0,1.047]
[1772473135395,1.09860293,2043.7,2042.3,3.35771189]
[1772473135596,1.09860293,2043.7,2042.4,4.89606237]
[1772473135803,3.92663656,2043.6,2042.4,4.89606237]
[1772473136112,1.09860293,2043.6,2042.4,4.89606237]
[1772473136490,1.22339124,2043.5,2042.4,4.89606237]
[1772473136805,2.32199417,2043.5,2042.4,4.89606237]
[1772473137013,2.32199417,2043.5,2042.3,0.003]
[1772473137014,1.09860293,2043.4,2042.3,0.003]
[1772473137186,3.92734016,2043.3,2042.3,1.22706756]
[1772473137383,1.09860293,2043.3,2042.3,1.22706756]
[1772473138080,1.22339124,2043.5,2042.3,1.22706756]
[1772473138485,1.22333137,2043.6,2042.4,1.08366176]
[1772473138797,1.09860293,2043.5,2042.5,1.048]
[1772473140520,4.8933255,2043.8,2042.5,1.048]
[1772473140521,1.22324834,2043.8,2042.6,1.22393028]
[1772473140677,1.09860293,2043.6,2042.5,0.001]
[1772473140879,1.09860293,2043.4,2042.5,0.001]
[1772473141193,1.09860293,2043.2,2042.5,0.001]
[1772473141602,2.83489821,2043.1,2042.5,0.001]
[1772473141782,3.93350114,2043.0,2042.5,0.001]
[1772473141982,1.09860293,2043.0,2042.5,0.001]
[1772473142222,3.40525369,2043.5,2042.5,0.001]
[1772473142524,1.22351098,2043.3,2042.5,0.001]
[1772473142830,1.22327151,2043.7,2042.5,1.045]
[1772473142986,2.83643771,2043.6,2042.5,1.045]
[1772473143516,1.09860293,2043.6,2042.5,0.001]
[1772473143677,2.83876549,2043.5,2042.5,0.001]
[1772473144109,1.09860293,2043.6,2042.5,0.001]
[1772473144478,1.22315181,2043.9,2042.6,1.22393028]
[1772473144707,2.84036345,2043.8,2042.6,2.30759204]
[1772473144907,1.22315181,2043.9,2042.6,2.30759204]
[1772473145333,1.09860293,2044.0,2042.7,1.08366176]
[1772473145491,1.22308769,2044.1,2042.7,1.08366176]
[1772473145703,1.09860293,2044.0,2042.7,1.08366176]
[1772473146000,1.09860293,2043.9,2042.8,1.044]
[1772473146210,1.09860293,2043.9,2042.6,1.22393028]
[1772473146399,1.215,2044.0,2042.6,1.22393028]
[1772473146400,1.09860293,2043.7,2042.6,1.22393028]
[1772473146594,1.09860293,2043.7,2042.5,4.89672113]
[1772473146595,2.3219343,2043.6,2042.5,4.89672113]
[1772473147885,1.09860293,2043.6,2042.5,4.89672113]
[1772473148088,1.05742393,2043.6,2042.5,4.89672113]
[1772473148604,4.89272214,2043.9,2042.7,1.22387036]
[1772473149130,1.22315181,2043.9,2042.7,1.22387036]
[1772473149287,1.22315181,2043.9,2042.7,2.30753212]
[1772473149914,1.22315181,2043.9,2042.8,1.08366176]
[1772473150716,1.09860293,2044.0,2042.7,4.89536796]
[1772473150887,1.09860293,2043.7,2042.7,1.22387036]
[1772473151082,1.09860293,2043.5,2042.6,1.045]
[1772473151385,3.95005184,2043.4,2042.6,1.045]
[1772473151592,1.09860293,2043.4,2042.5,1.046]
[1772473151897,1.09860293,2043.4,2042.5,2.26998347]
[1772473152815,4.07647554,2043.3,2042.5,2.2699834]
[1772473153017,3.95126808,2043.2,2042.5,0.001]
[1772473153207,2.85318962,2043.1,2042.7,0.001]
[1772473153514,2.85318962,2043.1,2042.5,0.001]
[1772473153515,1.09860293,2043.0,2042.5,0.001]
[1772473153720,3.95179255,2042.9,2042.5,0.001]
[1772473153916,2.85318962,2042.8,2042.5,0.001]
[1772473154119,2.85318962,2042.7,2042.5,0.001]
[1772473154304,2.85318962,2042.6,2042.5,0.001]
[1772473154615,2.85318962,2042.6,2042.3,0.004]
[1772473154616,1.2239902,2042.5,2042.3,0.004]
[1772473155188,1.2239902,2042.5,2042.2,1e-08]
[1772473155594,1.22381045,2042.8,2042.2,1e-08]
[1772473155815,2.43781045,2042.8,2042.2,1e-08]
[1772473156506,2.84818654,2042.7,2042.2,1e-08]
[1772473156712,1.22393028,2042.6,2042.2,1e-08]
[1772473157215,4.8953695,2042.8,2042.2,1e-08]
[1772473157386,1.22381045,2042.8,2042.2,1e-08]
[1772473157582,1.22373647,2043.0,2042.2,1.04100001]
[1772473157991,4.89438194,2043.2,2042.2,1.04100001]
[1772473158191,2.84772237,2043.1,2042.2,1.04100001]
[1772473158519,1.22357086,2043.2,2042.2,1.04100001]
[1772473158723,2.84890613,2043.1,2042.3,1.22411007]
[1772473159291,3.50221109,2043.2,2042.3,1.22411007]
[1772473159521,2.28921109,2043.2,2042.3,1.22411007]
[1772473160190,2.8503379,2043.1,2042.3,1.22411007]
[1772473160619,2.28921109,2043.2,2042.2,1e-08]
[1772473160620,1.22381045,2042.8,2042.2,1e-08]
[1772473160840,2.28945068,2042.8,2042.2,1e-08]
[1772473161041,2.28945068,2042.8,2042.0,0.001]
[1772473161042,1.06564023,2042.6,2042.0,1e-08]
[1772473161218,2.8484732,2042.5,2042.0,1e-08]
[1772473161523,1.06564023,2042.4,2042.0,1e-08]
[1772473161732,0.01169631,2041.7,2041.1,2.25323114]
[1772473162025,1.22381045,2042.8,2041.2,1.0284014]
[1772473162333,2.84749482,2042.7,2041.2,1.0284014]
[1772473162703,4.07140596,2042.7,2041.4,1.0284014]
[1772473162909,1.22391114,2042.7,2041.4,1.0284014]
[1772473163239,1.22391114,2042.7,2041.5,1.039]
[1772473163525,1.2238388,2042.8,2041.6,1.0284014]
[1772473164191,1.22377893,2042.9,2041.6,1.0284014]
[1772473164828,6.10730017,2043.2,2041.8,1.0284014]
[1772473164996,2.85145227,2043.1,2041.8,1.0284014]
[1772473166921,4.07508702,2043.1,2042.0,1.0284014]
[1772473167125,1.06564023,2043.3,2042.1,2.0644014]
[1772473167317,1.06564023,2043.3,2042.2,3.58070993]
[1772473167318,0.002,2043.0,2042.2,3.58070993]
[1772473167930,0.002,2043.0,2042.3,1.036]
[1772473168432,1.06764023,2043.0,2042.0,1.036]
[1772473168927,1.22375055,2042.9,2042.1,1.22422995]
[1772473169834,2.28939078,2042.9,2041.9,1.22430865]
[1772473170001,3.91749482,2042.8,2041.8,2.26136128]
[1772473172408,2.28951059,2042.7,2041.8,0.001]
[1772473172604,2.28939078,2042.9,2041.8,0.001]
[1772473172815,1.22573993,2043.0,2041.8,1.0294014]
[1772473173019,0.002,2043.0,2042.0,1.0284014]
[1772473173311,0.002,2043.0,2041.9,1.22434987]
[1772473173312,0.002,2043.0,2042.2,1.0284014]
[1772473173524,0.002,2043.2,2042.4,1.0284014]
[1772473173835,0.002,2043.5,2042.4,1.0284014]
[1772473174732,1.22520011,2043.9,2042.4,1.0284014]
[1772473174733,0.002,2043.9,2042.4,1.0284014]
[1772473174973,0.002,2043.9,2042.6,1.0284014]
[1772473175520,0.002,2043.9,2042.7,0.065536]
[1772473175737,0.002,2043.9,2042.8,1.0284014]
[1772473176106,0.002,2043.9,2042.5,1.2239902]
[1772473176107,0.002,2043.9,2043.0,1.0284014]
[1772473176539,0.002,2043.9,2043.1,1.034]
[1772473176737,0.002,2043.9,2043.2,1.034]
[1772473177038,0.002,2043.9,2042.7,2.25227176]
[1772473177236,0.002,2043.9,2043.1,1.034]
[1772473177739,0.002,2043.9,2042.9,1.034]
[1772473178835,1.06764023,2043.9,2042.9,1.034]
[1772473179023,1.06564023,2043.7,2042.9,1.034]
[1772473179224,1.06564023,2043.7,2042.6,1.032]
[1772473179636,1.06564023,2043.7,2042.4,1.22400262]
[1772473180425,1.06564023,2043.7,2042.3,2.25609542]
[1772473181122,2.28903147,2043.5,2042.3,2.25609542]
[1772473181328,1.06564023,2043.4,2042.6,0.001]
[1772473182841,1.06564023,2043.4,2042.4,0.001]
[1772473183412,1.06564023,2043.2,2042.4,0.001]
[1772473184230,1.204,2043.2,2042.4,0.001]
[1772473184420,1.06564023,2043.1,2042.4,0.001]
[1772473185445,1.06564023,2042.9,2042.4,0.001]
[1772473186040,1.22369065,2043.0,2042.4,0.001]
[1772473186249,2.28933088,2043.0,2042.4,0.001]
[1772473186443,1.06564023,2042.9,2042.4,0.001]
[1772473187544,1.22381045,2042.8,2042.4,0.001]
[1772473187928,1.04834716,2042.7,2042.1,0.001]
[1772473189748,1.22375055,2042.9,2042.1,0.001]
[1772473191053,1.04834716,2042.8,2042.1,0.001]
[1772473191634,4.89458998,2043.1,2042.1,0.001]
[1772473191829,4.89458998,2043.1,2042.1,0.96597275]
[1772473193652,1.04834716,2042.8,2042.1,0.001]
[1772473195360,1.04834716,2042.8,2041.8,0.001]
[1772473195745,1.04834716,2042.6,2042.0,0.001]
[1772473197762,1.04834716,2042.4,2042.0,0.001]
[1772473197965,1.04834716,2042.3,2041.4,1.023]
[1772473198767,2.25034716,2042.3,2041.4,1.023]
[1772473199363,1.04834716,2042.2,2041.4,1.023]
[1772473199732,1.04834716,2042.2,2040.9,1.22494977]
[1772473199733,1.04834716,2042.0,2040.9,1.22494977]
[1772473199936,1.04834716,2042.0,2040.8,1.34690729]
[1772473199937,1.04834716,2041.9,2040.8,1.34690729]
[1772473200166,2.27257711,2042.1,2040.9,0.96497275]
[1772473200466,1.04834716,2042.0,2040.9,0.96497275]
[1772473200653,1.22422995,2042.1,2041.0,1.98597275]
[1772473200833,1.04834716,2042.2,2041.1,0.96497275]
[1772473201234,1.04834716,2042.2,2041.1,1.98697275]
[1772473201430,1.04834716,2042.2,2040.8,2.36890729]
[1772473201631,1.22422995,2042.1,2041.0,1.22488975]
[1772473201841,1.22422995,2042.1,2041.0,2.1898625]
[1772473202246,1.22422995,2042.1,2041.1,0.96497275]
[1772473202868,2.27255405,2042.2,2041.1,0.96497275]
[1772473203035,1.22420689,2042.2,2041.1,0.96497275]
[1772473203241,1.2240951,2042.4,2041.1,0.96497275]
[1772473203472,5.94440823,2042.5,2041.1,0.96497275]
[1772473203473,2.27238403,2042.5,2041.1,0.96497275]
[1772473203838,2.27238403,2042.5,2041.3,0.96497275]
[1772473204136,2.27238403,2042.5,2041.4,1.98697275]
[1772473204338,1.04834716,2042.4,2041.3,1.024]
[1772473204964,1.04834716,2042.4,2041.4,0.96497275]
[1772473205141,1.22403687,2042.5,2041.4,0.96497275]
[1772473205342,2.27238403,2042.5,2041.4,0.96497275]
[1772473205555,1.04834716,2042.4,2041.3,1.024]
[1772473205764,2.27226673,2042.7,2041.6,0.96497275]
[1772473206255,2.27226673,2042.7,2041.5,1.22458976]
[1772473206256,1.04834716,2042.6,2041.5,1.22458976]
[1772473206451,1.04834716,2042.6,2041.6,1.024]
[1772473206641,2.25434716,2042.5,2041.5,1.22458976]
[1772473206847,1.04834716,2042.4,2041.3,1.22470974]
[1772473207952,1.22411007,2042.3,2041.4,0.96497275]
[1772473208541,1.22411007,2042.3,2041.5,0.001]
[1772473208750,0.002,2042.2,2041.5,0.001]
[1772473209486,1.05034716,2042.2,2041.5,0.001]
[1772473210065,0.002,2042.2,2041.5,0.96597275]
[1772473211343,1.22617112,2042.2,2041.5,0.001]
[1772473211545,1.04834716,2042.1,2041.5,0.001]
[1772473211970,1.22428991,2042.0,2041.5,0.001]
[1772473213270,2.27263707,2042.0,2041.5,0.001]
[1772473213464,1.04834716,2041.6,2040.8,0.1219056]
[1772473213643,1.04834716,2041.5,2040.9,0.001]
[1772473214145,1.04834716,2041.3,2040.8,1e-08]
[1772473214855,1.22464975,2041.4,2040.8,1.22499797]
[1772473215182,1.04834716,2041.2,2040.1,1.22540173]
[1772473215758,1.04834716,2040.6,2039.4,1.22582756]
[1772473216066,1.04834716,2040.5,2039.3,0.96497275]
[1772473216451,1.22513709,2040.6,2039.3,0.96497275]
[1772473216763,2.19238099,2040.9,2039.3,0.96497275]
[1772473217268,2.19226356,2041.1,2039.5,0.92655027]
[1772473218050,2.19222136,2041.1,2039.7,0.92655027]
[1772473218252,0.99669515,2041.0,2039.7,0.92655027]
[1772473219251,0.99669515,2041.0,2039.6,1.22573053]
[1772473219451,0.99669515,2040.8,2039.6,1.22573053]
[1772473219946,0.99669515,2040.6,2039.6,1.22573053]
[1772473220362,0.99669515,2040.4,2039.5,4.90292214]
[1772473220611,0.002,2042.2,2039.6,0.20214274]
[1772473220907,0.99869515,2042.9,2041.5,0.20214274]
[1772473221055,1e-08,2043.1,2041.6,1.77085464]
[1772473221262,0.002,2043.7,2041.7,0.065536]
[1772473221571,0.99669515,2043.3,2041.8,0.20214274]
[1772473222463,0.99669515,2043.3,2041.9,1.60850485]
[1772473223052,0.99669515,2043.3,2042.1,2.55230853]
[1772473223253,0.99669515,2043.3,2042.2,1.026]
[1772473223452,2.43331492,2043.7,2042.2,1.026]
[1772473223754,2.43331492,2043.7,2042.3,0.38000888]
[1772473223755,0.002,2043.7,2042.3,0.38000888]
[1772473223958,0.99669515,2043.8,2042.3,0.38000888]
[1772473224152,0.002,2043.9,2042.5,0.92655027]
[1772473224369,0.002,2043.9,2042.5,1.67140491]
[1772473224580,0.002,2043.9,2042.8,0.92655027]
[1772473224878,0.002,2043.9,2042.9,1.028]
[1772473225179,0.002,2043.9,2043.0,0.92655027]
[1772473225985,0.002,2044.2,2043.0,0.92655027]
[1772473226460,0.002,2044.2,2043.1,1.028]
[1772473226656,0.002,2044.2,2043.2,1.22357086]
[1772473227266,0.002,2044.2,2043.2,2.15012113]
[1772473227467,0.002,2044.4,2043.3,0.92655027]
[1772473227971,0.002,2044.4,2043.4,1.95455027]
[1772473228569,0.002,2044.4,2043.6,1.22333137]
[1772473230108,0.002,2044.7,2043.6,1.22333137]
[1772473230109,0.002,2044.7,2043.7,0.92655027]
[1772473230902,0.99669515,2045.8,2044.1,0.92655027]
[1772473231108,0.99669515,2045.8,2044.3,0.92655027]
[1772473231887,0.99669515,2045.8,2044.2,3.74507125]
[1772473232481,0.99669515,2045.8,2044.2,1.028]
[1772473232808,0.99669515,2045.5,2044.3,1.22291248]
[1772473233486,0.99669515,2045.5,2044.2,2.25092634]
[1772473234702,0.99669515,2045.4,2044.2,2.25092634]
[1772473235073,0.99669515,2045.2,2044.2,2.25092634]
[1772473235277,0.99669515,2045.2,2044.2,2.22648545]
[1772473235477,0.99669515,2045.2,2043.7,4.89306035]
[1772473235695,0.99669515,2045.2,2043.7,5.91806035]
[1772473235899,0.99669515,2045.1,2043.7,5.91806035]
[1772473236182,0.99669515,2045.1,2043.7,6.84461062]
[1772473237277,1.22249388,2045.0,2043.7,6.84461062]
[1772473237777,0.99669515,2044.9,2043.7,5.91806035]
[1772473239300,1.22261345,2044.8,2043.7,5.91806035]
[1772473239805,1.22261345,2044.8,2043.7,6.84461062]
[1772473240206,1.22259778,2044.9,2043.8,0.92655027]
[1772473241105,2.21922616,2045.0,2043.8,0.92655027]
[1772473241309,1.22253101,2045.0,2043.9,2.14970208]
[1772473241619,0.99669515,2045.0,2043.9,2.14970208]
[1772473243027,0.99669515,2045.0,2043.5,1.22327151]
[1772473243028,0.99669515,2045.0,2043.3,4.89401132]
[1772473243227,1.2224914,2045.1,2043.5,1.95355027]
[1772473243228,0.99669515,2044.9,2043.5,1.95355027]
[1772473243531,1.22261345,2044.8,2043.7,1.22327151]
[1772473244594,2.2193086,2044.8,2043.7,1.22327151]
[1772473244927,0.99669515,2044.7,2042.7,0.92655027]
[1772473245226,0.99669515,2044.7,2042.9,0.92655027]
[1772473245227,0.99669515,2044.6,2042.9,0.92655027]
[1772473245582,2.219488,2044.5,2043.1,0.92655027]
[1772473246502,0.99669515,2044.4,2043.2,1.028]
[1772473247900,1.04110761,2044.2,2043.3,1.22351098]
[1772473248086,1.04110761,2044.2,2043.3,1.22451098]
[1772473248295,1.04110761,2044.2,2043.3,0.001]
[1772473249034,1.199,2044.1,2043.3,0.001]
[1772473249198,1.04110761,2044.0,2043.3,0.001]
[1772473250012,1.22315181,2043.9,2043.3,0.001]
[1772473250722,2.26425942,2043.9,2043.3,0.001]
[1772473251343,2.26425942,2043.9,2042.7,4.89544671]
[1772473251344,1.32270905,2042.5,2040.8,0.003]
[1772473251620,1.32270905,2042.5,2039.5,0.001]
[1772473251621,1.04110761,2040.6,2039.5,0.001]
[1772473251824,0.10916832,2040.1,2039.2,1.22597096]
[1772473252027,1.04110761,2040.3,2039.2,1.22597096]
[1772473252226,1.86211198,2040.1,2039.2,1.22597096]
[1772473252435,1.04110761,2040.3,2039.2,1.22597096]